Cogmind - Beta 14 @@@ ROGUE MODE // 2024.11.13 @ 21:51:11 Player: TempBlind Result: Destroyed by G-47 Trooper with Particle Gun Performance ------------- Evolutions (2) 1000 Regions Visited (3) 600 Robots Destroyed (60) 300 Value Destroyed (1693) 1693 Prototype IDs (1) 20 Alien Tech Used (0) 0 Bonus (11) 11 TOTAL SCORE: 3624 Bonus ------- High Alert Combat Kills 11 Cogmind --------- Core Integrity 0/550 Matter 272/300 Energy 76/100 System Corruption 0% Temperature Cool (95) Movement Walking (120) Location -8/Materials Parts ------- > --- POWER (2) -------- (None) > --- PROPULSION (2) --- Improved Carbon-fiber Leg Improved Carbon-fiber Leg > --- UTILITY (4) ------ Heat Sink Small Storage Unit System Shield > --- WEAPON (3) ------- Particle Gun Beam Cannon > --- INVENTORY (8) ---- Improved Heat Sink Peak State ------------ > --- POWER ------------ Light Deuterium Engine Light Deuterium Engine > --- PROPULSION ------- Improved Carbon-fiber Leg Improved Carbon-fiber Leg > --- UTILITY ---------- Small Storage Unit Compact Battery Improved Terrain Scanner Hacking Suite > --- WEAPON ----------- Heavy EM Pulse Gun Heavy Particle Gun Minigun > --- INVENTORY -------- Light Deuterium Engine Improved Carbon-fiber Leg Improved Carbon-fiber Leg System Shield Spread Laser Beam Cannon Assault Rifle Improved Grenade Launcher [Rating: 35] Favorites ----------- Power Light Deuterium Engine Engine Light Deuterium Engine Power Core Light Nuclear Core Propulsion Wheel Treads Light Treads Leg Carbon-fiber Leg Wheel Wheel Utility Heat Sink Device Heat Sink Storage Small Storage Unit Hackware System Shield Protection Core Shielding Weapon Light Cannon Energy Gun EM Pulse Gun Energy Cannon Beam Cannon Ballistic Gun Assault Rifle Ballistic Cannon Light Cannon Launcher Improved Grenade Launcher Build | -11 -10 -9 -8 ------- Run | Yrd Mat Mat Mat Slots Evolved 4 | . . 2 2 Power 1 | . . 1 . Propulsion . | . . . . Utility 2 | . . 1 1 Weapon 1 | . . . 1 Parts Attached 52 | 7 5 13 27 Power 11 | 2 1 4 4 Engine 9 | 2 1 4 2 Core 2 | . . . 2 Reactor . | . . . . Propulsion 11 | 2 . 4 5 Treads 3 | . . 2 1 Leg 6 | . . 2 4 Wheel 2 | 2 . . . Hover . | . . . . Flight . | . . . . Utility 13 | 1 1 3 8 Device 6 | 1 . 1 4 Storage 3 | . 1 1 1 Processor . | . . . . Hackware 2 | . . . 2 Protection 2 | . . 1 1 Artifact . | . . . . Weapon 17 | 2 3 2 10 Energy Gun 8 | 1 2 . 5 Energy Cannon 3 | . . 1 2 Ballistic Gun 4 | 1 . 1 2 Ballistic Cannon 1 | . 1 . . Launcher 1 | . . . 1 Special Weapon . | . . . . Impact Weapon . | . . . . Slashing Weapon . | . . . . Piercing Weapon . | . . . . Special Melee Weapon . | . . . . Unidentified Prototypes 1 | . . . 1 Parts Lost 19 | . . 1 18 Power 6 | . . 1 5 Propulsion 2 | . . . 2 Utility 5 | . . . 5 Weapon 6 | . . . 6 Highest Loss Streak 11 | . . 1 11 To Critical Strikes . | . . . . Average Slot Usage (%) 96 | . 97 99 94 Engine 17 | . 14 21 15 Treads 3 | . . 9 . Leg 9 | . . 6 17 Wheel 8 | . 28 6 . Device 12 | . 14 13 11 Storage 16 | . 11 19 17 Hackware 2 | . . . 5 Energy Gun 12 | . 14 10 12 Energy Cannon 1 | . . . 2 Ballistic Gun 4 | . . . 10 Ballistic Cannon 6 | . 13 10 . Peak Build Rating 35 | 6 7 20 35 Average Rating 17 | 3 6 11 27 On Entrance 8 | . 6 7 20 Naked Turns . | . . . . Heaviest Build 28 | 8 12 22 28 Greatest Support 40 | 20 20 40 36 Greatest Overweight (x) 4 | . . 1 4 Average Overweight (x) . | . . . . Largest Inventory Capacity 8 | 5 5 8 8 Average Capacity 7 | 5 5 7 8 Most Carried 8 | 1 5 8 8 Average Carried 5 | . 4 5 6 Final Capacity 8 | 5 5 8 8 Final Carried 6 | 1 5 6 1 Class Distribution -------------------- 47% | Mutant 26% | Skirmisher 14% | Scavenger-Mutant 9% | Gunner Dominant Class ---------------- Mutant | -10/Materials Mutant | -9/Materials Skirmisher | -8/Materials Resources | -11 -10 -9 -8 ----------- Run | Yrd Mat Mat Mat Matter Collected 1181 | 257 168 279 477 Remotely . | . . . . Salvage Created 1820 | 39 280 472 1029 Parts 127 | 2 22 29 74 Haulers Intercepted 2 | . 1 . 1 Recyclers Shooed 1 | . . 1 . Parts Field Recycled . | . . . . Retrieved Matter . | . . . . Parts Self-Destructed . | . . . . Prevented . | . . . . Kills | -11 -10 -9 -8 ------- Run | Yrd Mat Mat Mat Combat Hostiles Destroyed 40 | 1 7 10 22 Guns 22 | 1 2 1 18 Cannons 12 | . 5 7 . AOE 5 | . . 2 3 Classes Destroyed 10 | 1 4 2 3 Worker 9 | . 1 1 7 Builder 3 | . . . 3 Tunneler 1 | . . . 1 Hauler 2 | . 1 . 1 Recycler 1 | . . 1 . Watcher 4 | . 1 3 . Swarmer 6 | . 3 . 3 Grunt 27 | 1 4 7 15 Brawler 1 | . . . 1 Sentry 6 | . . 3 3 Best Kill Streak 14 | 1 3 5 14 Combat Bots Only 4 | 1 2 3 4 Max Kills in Single Turn 6 | 1 2 1 6 Gunslinging . | . . . . Exploded 2 | . . 1 2 Melee . | . . . . Uniques/NPCs Destroyed . | . . . . Combat | -11 -10 -9 -8 -------- Run | Yrd Mat Mat Mat Hostile Shots Fired 280 | 10 25 58 187 Missed 105 | 1 13 26 65 Damage Taken 2780 | 101 137 492 2050 Core 772 | . 38 183 551 Absorbed by Shields . | . . . . Core Remaining (%) 79 | 100 84 54 . Volleys Fired 148 | 7 27 42 72 Largest 3 | 2 2 2 3 Hottest 125 | 60 75 75 125 Shots Fired 337 | 14 54 84 185 Gun 250 | 14 27 42 167 Cannon 82 | . 27 42 13 Launcher 5 | . . . 5 Special . | . . . . Kinetic 147 | 7 27 42 71 Thermal 91 | 7 . . 84 Explosive 5 | . . . 5 Electromagnetic 94 | . 27 42 25 Robot Hit Streak 15 | 4 11 15 9 Robot Miss Streak 21 | 2 3 6 21 Penetration Max . | . . . . Secondary Targets 5 | . . . 5 Max Gunslinging Chain 1 | . . . 1 Shots Hit Robots 201 | 9 37 50 105 Core Hits 115 | 2 13 22 78 Critical Kills 1 | . . . 1 Critical Parts Destroyed . | . . . . Critical Strikes 3 | . . 1 2 Burn 1 | . . . 1 Meltdown 1 | . . . 1 Blast 1 | . . 1 . Melee Attacks . | . . . . Impact . | . . . . Slashing . | . . . . Piercing . | . . . . Sneak Attacks . | . . . . Combat Hostiles . | . . . . Follow-up Attacks . | . . . . Damage Inflicted 4396 | 85 616 997 2698 Guns 2311 | 85 261 323 1642 Cannons 1011 | . 355 500 156 Explosions 1069 | . . 172 897 Melee . | . . . . Ramming 5 | . . 2 3 Kinetic 1555 | 29 355 500 671 Thermal 1175 | 56 . 137 982 Explosive 897 | . . . 897 Electromagnetic 764 | . 261 358 145 Impact . | . . . . Slashing . | . . . . Piercing . | . . . . Highest Corruption . | . . . . Average Corruption . | . . . . Corruption Purged . | . . . . Corruption Blocked . | . . . . Overload Shots . | . . . . Overflow Damage 28 | . . . 28 Projectiles . | . . . . Explosions 28 | . . . 28 Melee . | . . . . Knockbacks 7 | . 4 3 . Impact . | . . . . Kinetic 7 | . 4 3 . Secondary . | . . . . Self-Inflicted Damage 91 | . . . 91 Shots 3 | . . . 3 Rammed 1 | . . 1 . Targets Rammed 2 | . . 1 1 Kicked 1 | . . . 1 Crushed . | . . . . Highest Temperature 533 | 76 20 26 533 Average Temperature 107 | 34 7 8 132 Received Heat Transfer 1254 | 54 51 222 927 Effects 7 | . . . 7 Shutdowns 2 | . . . 2 Energy Bleed 1 | . . . 1 Interference 3 | . . . 3 Damage (core) 1 | . . . 1 Siege Activations . | . . . . Robots Corrupted . | . . . . Combat Hostiles . | . . . . Parts Fried . | . . . . Impact Corruptions . | . . . . Robots Melted 1 | . . . 1 Combat Hostiles 1 | . . . 1 Parts Melted 3 | . . . 3 Heat Transferred 2209 | 125 . 200 1884 Parts Sabotaged . | . . . . Parts Stolen . | . . . . Parts Stripped . | . . . . Power Chain Reactions 3 | . . 3 . Alert | -11 -10 -9 -8 ------- Run | Yrd Mat Mat Mat Peak Influence 461 | 20 257 461 403 Initial 159 | . 13 49 159 Average 192 | 3 94 299 179 Maximum Alert Level 2 | . 1 2 2 Low Security (%) 59 | 100 86 14 75 Level 1 38 | . 13 78 24 Level 2 2 | . . 7 . Level 3 . | . . . . Level 4 . | . . . . Level 5 . | . . . . High Security . | . . . . Max Security . | . . . . Squads Dispatched 7 | . 2 2 3 Investigation 4 | . 1 1 2 Extermination . | . . . . Reinforcement 3 | . 1 1 1 Assault . | . . . . Garrison . | . . . . Intercept . | . . . . Searches Triggered . | . . . . Construction Impeded 1 | . . . 1 Haulers Reinforced . | . . . . Active Scanning Responses . | . . . . Cargo Convoy Interrupts . | . . . . Stealth | -11 -10 -9 -8 --------- Run | Yrd Mat Mat Mat Distress Signals 5 | . 1 1 3 Communications Jammed . | . . . . Distress Signals . | . . . . Times Spotted 65 | 1 13 16 35 Peak Tracking Total 7 | 1 5 3 7 Tactical Retreats 4 | . 2 2 . Traps | -11 -10 -9 -8 ------- Run | Yrd Mat Mat Mat Traps Triggered 3 | . . . 3 Indirectly . | . . . . Trap Hack Attempts . | . . . . Triggered . | . . . . Disarmed . | . . . . Reprogrammed . | . . . . Reused . | . . . . Traps Extracted . | . . . . Installed . | . . . . Triggered . | . . . . Machines | -11 -10 -9 -8 ---------- Run | Yrd Mat Mat Mat Machines Disabled 8 | . 2 6 . Max in Single Turn 2 | . 1 2 . Machines Repaired . | . . . . Machines Dismantled . | . . . . Machines Sabotaged . | . . . . Overloaded Fab Kills . | . . . . Hacking | -11 -10 -9 -8 --------- Run | Yrd Mat Mat Mat Machines Accessed 8 | . 4 1 3 Terminals 6 | . 2 1 3 Fabricators . | . . . . Repair Stations . | . . . . Recycling Units 2 | . 2 . . Scanalyzers . | . . . . Garrison Access . | . . . . Total Hacks 28 | . 13 4 11 Successful 18 | . 10 3 5 Failed 9 | . 2 1 6 Catastrophic . | . . . . Database Lockouts 1 | . 1 . . Manual . | . . . . Terminals 20 | . 5 4 11 Fabricators . | . . . . Repair Stations . | . . . . Recycling Units 8 | . 8 . . Scanalyzers . | . . . . Garrison Access . | . . . . Terminal Hacks 11 | . 3 3 5 Record 9 | . 3 3 3 Alert Level 1 | . . . 1 Dispatch Records 1 | . . . 1 Fabricator Hacks . | . . . . Repair Station Hacks . | . . . . Recycling Unit Hacks 7 | . 7 . . Recycle Component 2 | . 2 . . Process 3 | . 3 . . Retrieve Matter 1 | . 1 . . Retrieve Components 1 | . 1 . . Scanalyzer . | . . . . Garrison Access Hacks . | . . . . Unauthorized Hacks . | . . . . Terminals . | . . . . Fabricators . | . . . . Repair Stations . | . . . . Recycling Units . | . . . . Scanalyzers . | . . . . Garrison Access . | . . . . Data Cores Recovered . | . . . . Used . | . . . . Hacking Detections 7 | . 3 1 3 Full Trace Events 4 | . 2 1 1 Feedback Events . | . . . . Feedback Blocked . | . . . . Robot Schematics Acquired . | . . . . Robots Built . | . . . . Authchips . | . . . . Time . | . . . . Total Robot Build Rating . | . . . . Part Schematics Acquired . | . . . . Parts Built . | . . . . Authchips . | . . . . Time . | . . . . Total Part Build Rating . | . . . . Parts Repaired . | . . . . Time . | . . . . Parts Recycled 2 | . 2 . . Recycled Matter 693 | . 693 . . Retrieved Matter 664 | . 664 . . Retrieved Components . | . . . . Parts Scanalyzed . | . . . . Part Schematics Acquired . | . . . . Parts Damaged . | . . . . Bothacking | -11 -10 -9 -8 ------------ Run | Yrd Mat Mat Mat Used RIF Installer . | . . . . Robots Hacked . | . . . . Non-combat . | . . . . Combat . | . . . . Robot Hacks Applied . | . . . . Relay Couplers Released . | . . . . Fabnet Peak Effective % . | . . . . Robots Rewired . | . . . . Allies Hacked . | . . . . Hacks Repelled . | . . . . Allies | -11 -10 -9 -8 -------- Run | Yrd Mat Mat Mat Total Allies . | . . . . Largest Group . | . . . . Highest-Rated Group . | . . . . Highest-Rated Ally . | . . . . Total Orders . | . . . . Ally Attacks . | . . . . Total Damage . | . . . . Kills . | . . . . Allies Corrupted . | . . . . Allies Melted . | . . . . Intel | -11 -10 -9 -8 ------- Run | Yrd Mat Mat Mat Robot Analysis Total . | . . . . Derelict Logs Recovered . | . . . . Drone Launches . | . . . . Drone Recoveries . | . . . . Exploration | -11 -10 -9 -8 ------------- Run | Yrd Mat Mat Mat Turns Passed 2308 | 72 520 725 991 Spaces Moved 1594 | 59 504 437 594 Core 24 | 17 . . 7 Treads 178 | . . 170 8 Legs 721 | . . 142 579 Wheels 671 | 42 504 125 . Hover . | . . . . Flight . | . . . . Fastest Speed 50 | 50 80 80 120 Average Speed 108 | 71 80 128 121 Slowest Speed 250 | 80 80 190 250 Overloaded Moves . | . . . . Propulsion Burnouts . | . . . . Robots Hopped . | . . . . Cave-ins Triggered . | . . . . Exploration Rate (%) 43 | 9 83 44 38 Regions Visited 3 Branch Regions . Pre-discovered Areas . | . . . . Known Exits Taken . | . . . . Unknown Exits Taken 3 | 1 1 1 . Scrap Searched . | . . . . Spaces Dug . | . . . . Terrain Destroyed 56 | . . 7 49 Melee . | . . . . Projectile . | . . . . AOE 56 | . . 7 49 Terrain Rammed . | . . . . Walls Destroyed . | . . . . Machines Disabled . | . . . . Actions | -11 -10 -9 -8 --------- Run | Yrd Mat Mat Mat Total 1877 | 72 567 518 720 Wait 25 | . 15 8 2 Move 1591 | 58 503 436 594 Hop . | . . . . Pick Up 33 | . 11 8 14 Fast Attach 15 | 6 1 3 5 Attach 16 | . . 4 12 Detach 1 | . . 1 . Swap 21 | 1 4 6 10 Drop 25 | . 6 9 10 Fire 148 | 7 27 42 72 Melee . | . . . . Ram . | . . . . Kick 1 | . . . 1 Crush 1 | . . 1 . Escape Stasis . | . . . . Rewire . | . . . . Trap . | . . . . Miscellaneous . | . . . . Route ------- -11/Scrapyard -10/Materials (discovered 3 exits: *Mat x2 / [*Min]) -9/Materials -8/Materials History --------- Turn | Location | Event 2 | -11/Scrapyard | Met Revision 17 40 | -11/Scrapyard | Discovered new exit (range 8) 73 | -11/Scrapyard | Entered Materials 120 | -10/Materials | Discovered new exit (range 5) 221 | -10/Materials | Discovered new exit (range 7) 304 | -10/Materials | Build established: Mutant 553 | -10/Materials | Central database locked down 570 | -10/Materials | Discovered new exit (range 4) 593 | -10/Materials | Entered another Materials area 593 | -9/Materials | Evolved 2 slots: Power x1, Utility x1 1078 | -9/Materials | Discovered new exit (range 12) 1091 | -9/Materials | Build established: Scavenger-Mutant 1318 | -9/Materials | Entered another Materials area 1318 | -8/Materials | Evolved 2 slots: Utility x1, Weapon x1 1614 | -8/Materials | Build established: Skirmisher 1995 | -8/Materials | Lost 3 parts (2u1w) 2077 | -8/Materials | Core integrity fell below 50% 2223 | -8/Materials | Core integrity fell below 20% 2243 | -8/Materials | Lost 11 parts (4p2n1u4w) 2309 | -8/Materials | Destroyed by G-47 Trooper with Particle Gun Last Messages --------------- Lgt. Nuclear Core melted. U-05 Engineer lays Concrete. U-05 Engineer builds a Wall. G-47 Trooper destroyed. U-05 Engineer builds a Wall. U-05 Engineer lays Concrete. U-05 Engineer builds a Wall. K-01 Serf collects debris. G-50 Soldier destroyed. K-01 Serf destroyed. U-05 Engineer lays Concrete. U-05 Engineer builds a Wall. Lgt. Nuclear Core destroyed. U-05 Engineer destroyed. Spread Laser destroyed. Critical hit (Burn: +37). Acquired Particle Gun. Critical hit (Burn: +37). Com. Battery destroyed. A-02 Transporter destroyed. Map ----- +----------------------------------------------------+ | # + * == ! | | # # ####"################### | | ##+##### # [ ##?#?# ## ] | | = # """ """ #????# ## [ [[ | | + """ """ ##??## ## % !!! [] | | ####+######## """ """ !#????# ## !!! | | #?# ??????# ##???# ## !! | | #?# ?????##! ! = ! #????#! ## ########### | | #?# ""????## ##???# ## #?????????? | | #?# """????#############?#??? ## #?????????? | | #?# """?????#????????########? ## #????#??#?? | | #?# ????????????? ?# ###+### #????????#? | | #?######?????? ?? ??# #?????##?#? | | ##?????????????????????# #?????????? | | ? ?????????????????????# #?#???#???? | | ??????????????????"????# u###+## ####?????#??#? | | ???????????????????????## %## #????????????? | | ?????T??????????????????# ## #????????????? | | ????????????????????????# ## " " #????????????? | | ????????????????????????# ## "T" #????????????? | | ????????????????????????# ## """ #????????????? | | ????????????????????????# ## #????????????? | | ???????????????????????## #########????????????? | | ???????????????????????# %t########????????????? | | ???????????????????????# #????????????? | | ???????????????????????# @%==! ###??????????? | | ???????????????????????# =[!%=! +??????? | | ???????????????????????#!!!==#####+#### [ #??????? | | ???????????????????????##=%=## #??????????? | | ???????????????????????##=[*## """ #??????????? | | ???????????????????????##!=!## """ #??????????? | | ???????????????????????##**=## """ #??????????? | | ??????????????????????###%= ## ????????????? | | ??????????????????????# #!= ## """ ????????????? | | ??????????????????????# # !# """ ???????????? | | ??????????????????????# #ggg# """ #??????????? | | ??????????????????????# #* [# ???????????? | | ???????????????? ????# # [=# ########???????????? | | ????????????????""???##!#=%=###??????????????????? | | ??????????????? """ ??# #%[=#* #?????????????????? | | ??????????????? """ ####*%%############?????????? | | ????????????"" """ %*%[=%= ????????? | | ????????? ! !!= ????????? | | ????????? | ????????? | | ??????????? #############################????????? | | ???????????????????????##?##?????????????????????? | | ?????????????????????????????????????????????????? | | ?????????????????????????????????????????????????? | | ?????????????????????????????????????????????????? | | ?????????????????????????????????????????????????? | +----------------------------------------------------+ Best States ------------- Heat Dissipation 41 Energy Generation 23 Energy Capacity 500 Matter Stores 300 Matter Capacity 300 Sight Range 16 Terrain Scan Range 16 Terrain Scan Density 10 Core Shielding 20 Evasion (%) 55 Recoil Reduction 2 Offensive Hacking 10 Defensive Hacking 10 Item Schematics ----------------- None Robot Schematics ------------------ None Fabricated ------------ Nothing Alien Tech Used ----------------- None Achievements -------------- It's Just You Loot Pinata Risk Taker Challenges ------------ None Game ------ Seed ArcArmorExtractor Manual? 0 Play Time 00:49:56 Cumulative 3.0 hours Start 2024.11.13 @ 20:42:46 End 2024.11.13 @ 21:51:11 Sessions 1 Manual Loads 0 Difficulty Rogue Special Mode None Game No. 3 Rogue 3 Adventurer 0 Explorer 0 Win Type - Total 0 Types 0/0/0/0/0/0/0/0/0 Lore% 6 Gallery% 6 Achievement% 8 Wizard Run 0 Options --------- Layout 1 ASCII 0 Keyboard 0 Movement Numpad Keybinds 0 Fullscreen 2 Font 24/Smallcaps Map View 50x35 Zoom Use 0% Tactical HUD 0 Map Filters NONE Filters NONE Steam 1 RUN: 1e375918-d0f9-4d75-b13d-b2e4207d7ca3